bitfinex-derivatives/quotes_BTCF0:USTF0_20230901
["timestamp","ask_amount","ask_price","bid_price","bid_amount"]
[1693581398857,0.05768906,25825.0,25823.0,0.04]
[1693581399056,0.01426422,25824.0,25823.0,0.041]
[1693581399248,0.01426422,25824.0,25823.0,1.0641]
[1693581399451,0.03699,25824.0,25823.0,1.12064838]
[1693581399662,0.02026422,25825.0,25823.0,1.17533745]
[1693581399959,0.006,25825.0,25824.0,0.05654838]
[1693581400152,0.006,25825.0,25824.0,0.11123745]
[1693581400353,0.003,25825.0,25824.0,0.11123745]
[1693581400548,1.0231,25829.0,25824.0,0.11123745]
[1693581400758,1.08009,25829.0,25823.0,1.0641]
[1693581401453,0.002,25825.0,25824.0,0.016]
[1693581401656,0.03899,25825.0,25824.0,0.07068907]
[1693581401853,0.07095328,25825.0,25824.0,0.016]
[1693581402063,0.08895328,25825.0,25823.0,0.014]
[1693581402261,0.02,25825.0,25823.0,0.041]
[1693581402461,1.0231,25826.0,25823.0,0.09754838]
[1693581402863,1.07435422,25826.0,25824.0,0.05468907]
[1693581403170,1.07435422,25826.0,25823.0,0.041]
[1693581403171,0.05125422,25826.0,25823.0,0.041]
[1693581403459,0.05125422,25826.0,25824.0,0.05468907]
[1693581403660,0.002,25825.0,25824.0,0.016]
[1693581403959,0.004,25825.0,25824.0,0.08368907]
[1693581404169,0.004,25825.0,25824.0,0.14023745]
[1693581404464,0.006,25826.0,25824.0,0.11123745]
[1693581404660,0.006,25826.0,25825.0,0.11123745]
[1693581404965,0.04299,25826.0,25825.0,0.05654838]
[1693581405162,0.04299,25826.0,25825.0,0.11123745]
[1693581405362,0.05425422,25826.0,25824.0,0.016]
[1693581405558,0.03999,25826.0,25824.0,0.016]
[1693581405959,0.03999,25826.0,25824.0,0.07068907]
[1693581406164,0.03999,25826.0,25824.0,0.016]
[1693581406361,1.0231,25832.0,25825.0,1.13433745]
[1693581406569,0.22778345,25850.0,25838.0,1.2]
[1693581406760,0.1652,25855.0,25850.0,0.00387]
[1693581406963,0.1652,25855.0,25854.0,1.0231]
[1693581407171,0.1652,25855.0,25854.0,1.13433745]
[1693581407465,0.00386,25868.0,25857.0,0.9739]
[1693581407667,0.1534,25866.0,25863.0,0.00387]
[1693581407864,0.17726,25866.0,25862.0,1.0231]
[1693581408071,1.0231,25864.0,25857.0,1.0231]
[1693581408360,0.02,25864.0,25860.0,1.0231]
[1693581408569,0.036,25855.0,25854.0,1.0251]
[1693581408771,0.073,25855.0,25854.0,1.0281]
[1693581409161,0.073,25855.0,25854.0,0.003]
[1693581409162,0.057,25855.0,25854.0,0.003]
[1693581409669,0.12595328,25855.0,25854.0,0.003]
[1693581410069,0.13895328,25855.0,25854.0,0.005]
[1693581410267,0.10194963,25855.0,25854.0,0.002]
[1693581410666,1.2,25852.0,25846.0,1.0231]
[1693581410877,1.0231,25850.0,25844.0,0.00387]
[1693581411063,1.0231,25850.0,25834.0,0.74994057]
[1693581411064,1.02696,25847.0,25838.0,0.9739]
[1693581411368,1.04696,25847.0,25839.0,1.0431]
[1693581411574,1.04696,25847.0,25839.0,1.0231]
[1693581411759,1.04696,25847.0,25833.0,0.01705632]
[1693581411760,0.00386,25843.0,25837.0,1.0231]
[1693581411966,1.2,25842.0,25837.0,1.0231]
[1693581412162,1.0231,25841.0,25835.0,1.0231]
[1693581412470,1.2,25842.0,25838.0,1.0231]
[1693581412671,0.06894963,25841.0,25838.0,1.0231]
[1693581412970,0.15536,25843.0,25839.0,0.003]
[1693581413173,0.06894963,25842.0,25839.0,0.023]
[1693581413392,0.15536,25843.0,25839.0,0.023]
[1693581413577,0.1515,25843.0,25841.0,1.0231]
[1693581413875,0.15536,25843.0,25839.0,0.003]
[1693581414277,0.06894963,25842.0,25839.0,0.039]
[1693581414468,0.3,25841.0,25839.0,0.039]
[1693581414962,0.06894963,25840.0,25839.0,0.006]
[1693581415273,0.06894963,25840.0,25839.0,0.003]
[1693581416162,0.01426057,25840.0,25839.0,0.023]
[1693581416370,0.336,25841.0,25839.0,1.0261]
[1693581416669,0.06894963,25840.0,25839.0,1.0461]
[1693581416877,0.03826057,25840.0,25839.0,1.0461]
[1693581417076,0.03826057,25840.0,25839.0,0.02]
[1693581417266,0.03826057,25840.0,25839.0,0.023]
[1693581417467,0.024,25840.0,25839.0,0.023]
[1693581418073,0.024,25840.0,25839.0,0.13423745]
[1693581418370,0.024,25840.0,25839.0,0.023]
[1693581418371,0.07868906,25840.0,25839.0,0.023]
[1693581418562,0.03826057,25840.0,25839.0,0.023]
[1693581418966,0.03826057,25840.0,25839.0,0.003]
[1693581418967,1.13604963,25840.0,25839.0,0.003]
[1693581419163,1.11204963,25840.0,25839.0,0.003]
[1693581419570,1.09204963,25840.0,25839.0,0.003]
[1693581419770,1.12204963,25840.0,25839.0,0.004]
[1693581420277,1.11204963,25840.0,25839.0,0.003]
[1693581420475,1.14804963,25840.0,25839.0,0.003]
[1693581420778,1.15204963,25840.0,25839.0,0.002]
[1693581421776,1.16404963,25840.0,25839.0,0.004]
[1693581424274,0.14094963,25840.0,25839.0,0.004]
[1693581424474,0.14194963,25840.0,25839.0,0.003]
[1693581425382,0.14194963,25840.0,25839.0,0.00283415]
[1693581425981,0.14194963,25840.0,25839.0,0.02283415]
[1693581426478,0.14194963,25840.0,25828.0,0.0409]
[1693581426479,0.01644585,25839.0,25831.0,0.9739]
[1693581426778,1.0231,25833.0,25829.0,0.00387]
[1693581426983,1.0231,25833.0,25830.0,0.05468907]
[1693581426984,0.01426057,25832.0,25830.0,0.05468907]
[1693581427179,0.01898,25830.0,25829.0,1.02697]
[1693581427380,0.01898,25830.0,25829.0,1.04697]
[1693581427581,1.02696,25836.0,25832.0,0.00387]
[1693581427772,0.06894963,25835.0,25832.0,0.00387]
[1693581427977,1.02696,25836.0,25832.0,0.02387]
[1693581428183,0.06894963,25835.0,25832.0,0.02387]
[1693581428471,1.02696,25836.0,25832.0,0.02]
[1693581428677,0.05468906,25835.0,25832.0,0.02355415]
[1693581428887,1.02696,25836.0,25832.0,0.02355415]
[1693581429178,0.019,25832.0,25831.0,0.00358064]
[1693581429376,1.0231,25833.0,25830.0,0.02510268]
[1693581429377,0.01541936,25831.0,25830.0,0.02510268]
[1693581429577,1.02696,25833.0,25830.0,0.00968332]
[1693581429783,1.02696,25833.0,25832.0,0.003]
[1693581430171,1.0231,25833.0,25832.0,0.018]
[1693581430373,1.09204963,25833.0,25832.0,0.015]
[1693581430676,0.01426057,25833.0,25832.0,0.01887]
[1693581430882,0.002,25833.0,25832.0,0.08010253]
[1693581431181,0.002,25833.0,25832.0,0.02355415]
[1693581431682,0.21728906,25834.0,25832.0,0.02555415]
[1693581431879,0.024,25833.0,25832.0,0.02555415]
[1693581432077,0.09294963,25833.0,25832.0,0.02555415]
[1693581432278,0.03826057,25833.0,25832.0,0.02555415]
[1693581432582,0.03826057,25833.0,25832.0,0.02942415]
[1693581432881,0.03826057,25833.0,25832.0,0.02555415]
[1693581433077,0.03826057,25833.0,25832.0,0.02355415]
[1693581433280,0.036,25833.0,25832.0,0.1357916]
[1693581433477,0.036,25833.0,25832.0,1.1588916]
[1693581434077,0.036,25833.0,25832.0,1.15533745]
[1693581434278,0.036,25833.0,25832.0,1.1588916]
[1693581438180,0.09068906,25833.0,25832.0,0.02455415]
[1693581438477,0.09068906,25833.0,25832.0,0.00172]
[1693581438478,1.14851491,25833.0,25832.0,0.00172]
[1693581438685,1.16277548,25833.0,25830.0,0.00968332]
[1693581438880,1.02696,25831.0,25830.0,0.00968332]
[1693581439078,2.26168585,25831.0,25830.0,0.00968332]
[1693581439287,0.01215668,25830.0,25821.0,1.3231]
[1693581439582,0.00829668,25825.0,25821.0,1.33480332]
[1693581439786,0.06894963,25824.0,25821.0,1.36890332]
[1693581440088,0.00829668,25825.0,25821.0,1.36890332]
[1693581440388,0.00829668,25825.0,25823.0,1.0231]
[1693581440581,0.00829668,25825.0,25824.0,0.05654838]
[1693581440882,0.01229668,25825.0,25824.0,0.13123745]
[1693581441192,0.01529668,25825.0,25824.0,0.13123745]
[1693581441484,0.02955725,25825.0,25823.0,1.0231]
[1693581441686,0.02955725,25825.0,25823.0,1.0431]
[1693581441887,0.02955725,25825.0,25824.0,0.05468907]
[1693581441888,0.0442831,25825.0,25824.0,0.05468907]
[1693581442082,0.01529668,25825.0,25824.0,0.05468907]
[1693581442279,0.01529668,25825.0,25824.0,0.04368907]
[1693581442480,0.01229668,25825.0,25824.0,0.10023745]
[1693581442682,0.01629668,25825.0,25824.0,0.15623745]
[1693581443382,0.01229668,25825.0,25824.0,0.04771]
[1693581443687,1.04612253,25825.0,25821.0,0.0341]
[1693581443886,1.05012253,25825.0,25824.0,0.036]
[1693581444086,1.12307217,25825.0,25824.0,0.036]
[1693581444289,1.12307217,25825.0,25824.0,0.02801]
[1693581444483,1.12207217,25825.0,25824.0,0.02801]
[1693581444788,0.0442831,25825.0,25824.0,0.02801]
[1693581445178,0.09897217,25825.0,25824.0,0.02801]
[1693581445578,0.09497217,25825.0,25821.0,1.0572]
[1693581445780,0.02902253,25825.0,25824.0,0.023]
[1693581446185,0.0432831,25825.0,25824.0,0.023]
[1693581446484,0.00829668,25822.0,25821.0,1.0572]
[1693581446786,0.02255725,25822.0,25821.0,1.05822]
[1693581447090,0.02255725,25822.0,25821.0,1.19500248]
[1693581447483,0.00829668,25822.0,25821.0,1.19500248]
[1693581447678,0.00829668,25822.0,25821.0,1.23155086]
[1693581447984,0.00829668,25822.0,25821.0,1.25155086]
[1693581448183,0.01929668,25822.0,25821.0,1.25155086]
[1693581448884,0.00929668,25822.0,25821.0,1.25155086]
[1693581449477,0.00929668,25822.0,25821.0,1.23155086]
[1693581449679,0.00929668,25822.0,25821.0,1.25155086]
[1693581450182,0.01229668,25822.0,25821.0,1.1323134]
[1693581450487,0.01429668,25822.0,25821.0,1.1323134]
[1693581450690,0.01429668,25822.0,25821.0,1.17600248]
[1693581451184,0.01129668,25822.0,25821.0,1.19800248]
[1693581451486,0.01429668,25822.0,25821.0,2.29765086]
[1693581451689,0.01429668,25822.0,25821.0,2.27765086]
[1693581451989,0.02229668,25822.0,25821.0,2.29765086]
[1693581452789,0.02229668,25822.0,25821.0,2.26053086]
[1693581453192,0.02229668,25822.0,25821.0,2.24053086]
[1693581453386,0.02229668,25822.0,25821.0,2.26053086]
[1693581453795,0.02229668,25822.0,25821.0,2.26253086]
[1693581454194,0.01129668,25822.0,25821.0,2.26253086]
[1693581454394,0.01429668,25822.0,25821.0,2.26253086]
[1693581454899,0.02229668,25822.0,25821.0,2.26253086]
[1693581455491,0.02229668,25822.0,25821.0,2.33954624]
[1693581455796,0.02229668,25822.0,25821.0,2.33954622]
[1693581455990,0.02229668,25822.0,25821.0,2.3175443]
[1693581456192,0.02229668,25822.0,25821.0,2.24053086]
[1693581457096,0.03702253,25822.0,25821.0,2.24053086]
[1693581457692,0.006,25822.0,25821.0,2.31762837]
[1693581457902,0.006,25822.0,25821.0,3.13452295]
[1693581458105,0.00829668,25827.0,25822.0,0.00495892]
[1693581458292,0.02302253,25827.0,25826.0,1.0231]
[1693581458486,0.00829668,25827.0,25826.0,1.12333746]
[1693581458695,0.02829668,25827.0,25826.0,1.1161934]
[1693581459091,0.02829668,25827.0,25825.0,1.1161934]
[1693581459299,0.02829668,25827.0,25826.0,1.1161934]
[1693581459500,0.04302253,25827.0,25826.0,1.21643086]
[1693581460190,0.04502253,25827.0,25826.0,1.17274178]
[1693581460391,0.04502253,25827.0,25826.0,1.1161934]
[1693581460598,0.04502253,25827.0,25826.0,1.17274178]
[1693581460800,0.04502253,25827.0,25826.0,1.21643086]
[1693581460996,0.04702253,25827.0,25826.0,1.24643086]
[1693581461202,0.05102253,25827.0,25826.0,1.24643086]
[1693581461689,0.05102253,25827.0,25826.0,1.24943086]
[1693581461889,0.03102253,25827.0,25826.0,1.24943086]
[1693581462092,0.01629668,25827.0,25826.0,1.24943086]
[1693581462500,0.01629668,25827.0,25826.0,1.24643086]
[1693581463205,0.01529668,25827.0,25826.0,1.32154091]
[1693581463699,0.03002253,25827.0,25826.0,1.32154091]
[1693581464099,0.01529668,25827.0,25826.0,1.32154091]
[1693581464504,0.01429668,25827.0,25826.0,1.32154091]
[1693581464802,0.02902253,25827.0,25826.0,1.32154091]
[1693581465003,0.6872431,25827.0,25826.0,1.22130345]
[1693581465200,0.6872431,25827.0,25826.0,1.1441934]
[1693581465704,0.74193217,25827.0,25826.0,0.028]
[1693581465894,1.04193217,25827.0,25826.0,0.028]
[1693581466502,1.04893217,25827.0,25826.0,0.026]
[1693581466893,1.04793217,25827.0,25826.0,0.002]
[1693581468001,0.00386,25826.0,25824.0,0.0005808]
[1693581468206,0.68904964,25825.0,25824.0,0.0005808]
[1693581468597,0.86234964,25825.0,25824.0,0.0005808]
[1693581469304,0.87507549,25825.0,25824.0,0.0005808]
[1693581469499,0.91107549,25825.0,25824.0,0.0005808]
[1693581469693,0.00829668,25822.0,25821.0,0.07711005]
[1693581469898,0.00829668,25822.0,25821.0,1.17492928]
[1693581470204,0.00829668,25822.0,25821.0,1.11622843]
[1693581470505,0.02102253,25822.0,25821.0,1.15991751]
[1693581470806,0.02102253,25822.0,25821.0,1.21646589]
[1693581471400,0.1921372,25835.0,25829.0,0.29170332]
[1693581471602,0.1921372,25840.0,25835.0,0.29170332]
[1693581471796,0.00829668,25841.0,25839.0,1.2402]
[1693581472006,0.00829668,25841.0,25840.0,0.72033746]
[1693581472199,0.00829668,25841.0,25840.0,0.74033746]
[1693581472401,0.00829668,25841.0,25840.0,0.12023746]
[1693581473097,0.00929668,25841.0,25840.0,0.12023746]
[1693581473502,0.00829668,25841.0,25840.0,1.14253746]
[1693581473698,0.01129668,25841.0,25840.0,1.12753746]
[1693581473907,0.01129668,25841.0,25840.0,1.14753746]
[1693581474803,0.01129668,25841.0,25840.0,1.12753746]
[1693581475203,0.02429668,25841.0,25840.0,1.12853746]
[1693581475808,0.01129668,25841.0,25840.0,1.12753746]
[1693581476207,0.02029668,25841.0,25840.0,1.12453746]
[1693581476402,0.02029668,25841.0,25840.0,1.06798908]
[1693581476711,0.05329668,25841.0,25840.0,0.003]
[1693581477102,0.11324632,25841.0,25840.0,0.006]
[1693581477505,0.09324632,25841.0,25840.0,0.006]
[1693581477911,0.11324632,25841.0,25840.0,0.006]
[1693581478715,0.13624632,25841.0,25840.0,0.004]
[1693581478910,0.08155725,25841.0,25840.0,0.06054838]
[1693581479105,0.04729668,25841.0,25840.0,0.06054838]
[1693581479307,0.04729668,25841.0,25840.0,1.08284838]
[1693581479506,0.04729668,25841.0,25840.0,1.12853746]
[1693581479507,0.08229668,25841.0,25840.0,1.12853746]
[1693581480217,0.04529668,25841.0,25840.0,1.12553746]
[1693581480420,0.08129668,25841.0,25840.0,1.12953746]
[1693581480614,0.04429668,25841.0,25840.0,1.12653746]
[1693581480925,0.08029668,25841.0,25840.0,1.0293]
[1693581481224,0.08029668,25841.0,25840.0,1.07298908]
[1693581481919,0.08029668,25841.0,25840.0,1.12953746]
[1693581482127,0.08029668,25841.0,25840.0,1.14953746]
[1693581482517,0.08129668,25841.0,25840.0,1.12953746]
[1693581482716,0.09555725,25841.0,25840.0,1.09298908]
[1693581482916,0.09555725,25841.0,25840.0,1.07298908]
[1693581483318,0.04429668,25841.0,25840.0,1.13053746]
[1693581483519,0.00829668,25841.0,25840.0,1.12653746]
[1693581483720,0.04429668,25841.0,25840.0,1.12853746]
[1693581483924,0.06429668,25841.0,25840.0,1.0283]
[1693581484123,0.01329,25840.0,25837.0,1.0223]
[1693581484423,0.03329668,25841.0,25840.0,0.002]
[1693581484615,0.04755725,25841.0,25840.0,0.002]
[1693581485124,0.08455725,25841.0,25840.0,0.005]
[1693581485524,0.09555725,25841.0,25840.0,0.005]
[1693581485927,0.08255725,25841.0,25840.0,0.004]
[1693581486225,0.13724632,25841.0,25840.0,0.004]
[1693581486625,0.11324632,25841.0,25840.0,0.002]
[1693581486821,0.15024632,25841.0,25840.0,0.005]
[1693581487622,0.11424632,25841.0,25840.0,0.003]
[1693581487829,0.15024632,25841.0,25840.0,0.006]
[1693581488732,0.11324632,25841.0,25840.0,0.003]
[1693581488932,0.09555725,25841.0,25840.0,0.006]
[1693581490322,0.08129668,25841.0,25840.0,0.006]
[1693581490524,0.08129668,25841.0,25840.0,0.04968908]
[1693581490724,0.08129668,25841.0,25840.0,0.10623746]
[1693581491429,0.08129668,25841.0,25840.0,0.10323746]
[1693581491635,0.08129668,25841.0,25840.0,0.10623746]
[1693581492233,0.08129668,25841.0,25840.0,0.72583746]
[1693581493435,0.08129668,25841.0,25840.0,0.6256]
[1693581494032,0.08129668,25841.0,25840.0,0.66928908]
[1693581494233,0.08129668,25841.0,25840.0,0.72583746]
[1693581495642,0.1921372,25856.0,25851.0,0.6874]
[1693581495940,0.1583,25863.0,25857.0,0.6196]
[1693581496140,0.00386,25866.0,25863.0,0.00387]
[1693581496436,0.3163,25864.0,25859.0,0.00387]
[1693581496737,0.3363,25864.0,25863.0,0.6196]
[1693581496939,0.35056057,25864.0,25862.0,0.66328908]
[1693581497145,0.3363,25864.0,25862.0,0.6196]
[1693581497342,0.3363,25864.0,25863.0,0.00387]
[1693581497641,0.3163,25864.0,25863.0,0.00387]
[1693581497938,0.41824964,25864.0,25862.0,0.6196]
[1693581498132,0.3493,25864.0,25863.0,0.00387]
[1693581498332,0.36356057,25864.0,25863.0,0.6196]
[1693581498537,0.36356057,25864.0,25863.0,0.6226]
[1693581498737,0.36356057,25864.0,25863.0,0.62647]
[1693581498933,0.38456057,25864.0,25863.0,0.003]
[1693581499140,0.43924964,25864.0,25863.0,0.003]
[1693581499640,0.43924964,25864.0,25863.0,0.006]
[1693581500839,0.43924964,25864.0,25863.0,0.003]
[1693581501044,0.46324964,25864.0,25863.0,0.003]
[1693581501744,0.42624964,25864.0,25863.0,0.003]
[1693581502046,0.46324964,25864.0,25863.0,0.006]
[1693581502642,1.08284964,25864.0,25863.0,0.006]
[1693581503238,0.44324964,25864.0,25863.0,0.006]
[1693581503544,0.46324964,25864.0,25863.0,0.006]
[1693581504347,0.46224964,25864.0,25863.0,0.003]
[1693581504750,0.44124964,25864.0,25860.0,0.6196]
[1693581504940,0.4093,25864.0,25863.0,0.003]
[1693581505142,0.27711693,25864.0,25863.0,0.003]
[1693581505647,0.34606657,25864.0,25863.0,0.003]
[1693581506945,0.96566657,25864.0,25863.0,0.003]
[1693581507156,0.89671693,25864.0,25856.0,0.62347]
[1693581507348,0.00386,25860.0,25856.0,0.6196]
[1693581507543,0.06894964,25859.0,25856.0,0.6196]
[1693581507744,0.05468907,25859.0,25856.0,0.66328908]
[1693581507951,0.01426057,25858.0,25856.0,0.6196]
[1693581508247,0.00386,25860.0,25857.0,0.04368908]
[1693581508453,0.05468907,25859.0,25856.0,0.6196]
[1693581508751,0.00386,25860.0,25856.0,0.6196]
[1693581508943,0.00386,25860.0,25857.0,0.10023746]
[1693581508944,0.036,25859.0,25857.0,0.10023746]
[1693581509146,0.01426057,25858.0,25856.0,0.6256]
[1693581509350,0.02,25859.0,25856.0,0.6226]
[1693581509551,0.01426057,25858.0,25857.0,0.003]
[1693581510743,0.06894964,25858.0,25857.0,0.003]
[1693581510953,0.03986,25860.0,25856.0,0.003]
[1693581510954,0.03054057,25857.0,25856.0,0.003]
[1693581511158,0.03054057,25857.0,25852.0,0.0452]
[1693581511159,0.01628,25856.0,25852.0,0.0452]
[1693581511346,0.6196,25853.0,25852.0,0.00994]
[1693581511544,0.6396,25853.0,25852.0,0.00994]
[1693581511749,0.07468907,25853.0,25852.0,0.00994]
[1693581511954,0.03426057,25853.0,25852.0,0.00994]
[1693581512346,0.08894964,25853.0,25852.0,0.00994]
[1693581512652,0.01726057,25853.0,25852.0,0.07462908]
[1693581512952,0.005,25853.0,25852.0,0.04494]
[1693581513148,0.005,25853.0,25852.0,0.14517746]
[1693581513346,0.005,25853.0,25852.0,0.08862908]
[1693581513745,0.025,25853.0,25852.0,0.04494]
[1693581513949,0.03926057,25853.0,25852.0,0.04494]
[1693581514143,0.05226057,25853.0,25852.0,0.02594]
[1693581514746,0.10694964,25853.0,25852.0,0.02594]
[1693581515355,0.05612057,25853.0,25852.0,0.02594]
[1693581515554,0.05226057,25853.0,25852.0,0.02594]
[1693581516058,0.08626057,25853.0,25852.0,0.01494]
[1693581516255,0.08626057,25853.0,25852.0,0.005]
[1693581516656,0.08626057,25853.0,25852.0,0.6246]
[1693581517055,0.07294964,25853.0,25852.0,0.6466]
[1693581517256,0.10894964,25853.0,25852.0,0.6486]
[1693581517461,0.05426057,25853.0,25852.0,0.6486]
[1693581517652,0.10894964,25853.0,25852.0,0.6486]
[1693581517853,0.01826057,25853.0,25852.0,0.6466]
[1693581518055,0.02226057,25853.0,25852.0,0.6646]
[1693581518955,0.008,25853.0,25852.0,0.72114838]
[1693581519150,0.008,25853.0,25852.0,0.70215838]
[1693581519356,0.008,25853.0,25852.0,0.74584746]
[1693581520564,0.008,25853.0,25852.0,0.68929908]
[1693581520759,0.008,25853.0,25852.0,0.64561]
[1693581520962,0.02226057,25853.0,25852.0,0.64561]
[1693581521265,0.07694964,25853.0,25852.0,0.64561]
[1693581521656,0.02226057,25853.0,25852.0,0.64561]
[1693581521965,0.02612057,25853.0,25852.0,0.64561]
[1693581522865,0.02226057,25853.0,25852.0,0.68929908]
[1693581523163,0.008,25853.0,25852.0,0.64561]
[1693581523359,0.01186,25853.0,25852.0,0.68929908]
[1693581523665,0.008,25853.0,25852.0,0.64561]
[1693581523852,0.01186,25853.0,25852.0,0.68929908]
[1693581524556,0.008,25853.0,25852.0,0.68929908]
[1693581525064,0.008,25853.0,25852.0,0.74584746]
[1693581526060,0.02226057,25853.0,25852.0,0.68929908]
[1693581526263,0.008,25853.0,25852.0,0.70929908]
[1693581526461,0.008,25853.0,25852.0,1.00929908]
[1693581526861,0.008,25853.0,25852.0,1.06584746]
[1693581527071,0.155,25856.0,25852.0,1.06584746]
[1693581527373,0.155,25856.0,25855.0,0.62347]
[1693581527568,0.155,25856.0,25855.0,0.64347]
[1693581527765,0.155,25856.0,25855.0,0.74370746]
[1693581527965,0.16,25863.0,25856.0,0.00387]
[1693581528169,0.1662,25862.0,25861.0,0.6196]
[1693581528370,0.18046057,25862.0,25861.0,0.6196]
[1693581528569,0.20046057,25862.0,25861.0,0.6196]
[1693581528885,0.1662,25862.0,25861.0,0.66328908]
[1693581529270,0.1662,25862.0,25861.0,0.68328908]
[1693581529667,0.1662,25862.0,25861.0,0.6196]
[1693581529861,0.18046057,25862.0,25858.0,0.6196]
[1693581530077,0.6196,25859.0,25855.0,0.022]
[1693581530262,0.01426057,25858.0,25855.0,0.022]
[1693581530470,0.02,25858.0,25855.0,0.022]
[1693581530774,0.06894964,25857.0,25856.0,0.6196]
[1693581530969,0.08894964,25857.0,25856.0,0.6196]
[1693581531162,0.03426057,25857.0,25856.0,0.6196]
[1693581531365,0.01426057,25857.0,25856.0,0.00387]
[1693581531570,0.01426057,25857.0,25856.0,0.62347]
[1693581531875,0.003,25858.0,25856.0,0.66715908]
[1693581532064,0.023,25858.0,25857.0,0.6196]
[1693581532569,0.01726057,25858.0,25857.0,0.6196]
[1693581532967,0.003,25858.0,25857.0,0.66328908]
[1693581533372,0.00058012,25859.0,25857.0,0.71983746]
[1693581533572,0.012,25858.0,25857.0,0.05854838]
[1693581533768,0.012,25858.0,25857.0,0.67814838]
[1693581534171,0.012,25858.0,25857.0,0.6216]
[1693581534674,0.003,25858.0,25857.0,0.74383746]
[1693581535779,0.003,25858.0,25857.0,1.38343746]
[1693581536269,0.002,25858.0,25857.0,1.36043746]
[1693581536476,0.014,25858.0,25857.0,1.36243746]
[1693581536866,0.005,25858.0,25857.0,1.38843746]
[1693581537068,0.006,25858.0,25857.0,0.78983746]
[1693581537769,0.003,25858.0,25857.0,0.76783746]
[1693581537970,0.007,25858.0,25857.0,0.78983746]
[1693581539278,0.006,25858.0,25857.0,0.77683746]
[1693581539666,0.006,25858.0,25857.0,0.78070746]
[1693581539870,0.007,25858.0,25857.0,0.79370746]
[1693581540071,0.007,25858.0,25857.0,0.77370746]
[1693581540270,0.007,25858.0,25857.0,0.78983746]
[1693581540470,0.003,25858.0,25857.0,0.74183746]
[1693581540781,0.005,25858.0,25857.0,0.75683746]
[1693581540973,0.005,25858.0,25857.0,0.77683746]
[1693581542077,0.006,25858.0,25857.0,0.78983746]
[1693581542289,0.007,25858.0,25857.0,0.78983746]
[1693581543380,0.003,25858.0,25857.0,0.76783746]
[1693581543582,0.007,25858.0,25857.0,0.76983746]
[1693581544279,0.007,25858.0,25857.0,1.40943746]
[1693581546484,0.007,25858.0,25857.0,1.38943746]
[1693581548482,0.027,25858.0,25857.0,0.05]
[1693581548878,0.027,25858.0,25857.0,0.10654838]
[1693581549286,0.007,25858.0,25857.0,0.72614838]
[1693581549680,0.007,25858.0,25857.0,0.76983746]
[1693581550485,0.007,25858.0,25857.0,1.40943746]
[1693581553287,0.007,25858.0,25857.0,1.40846682]
[1693581554082,0.007,25858.0,25857.0,1.34477774]
[1693581554281,0.007,25858.0,25857.0,1.28822936]
[1693581554486,0.04126057,25858.0,25857.0,0.04902936]
[1693581554681,0.09594964,25858.0,25857.0,0.04902936]
[1693581555384,0.02126057,25858.0,25857.0,0.04902936]
[1693581555583,0.027,25858.0,25857.0,0.09271844]
[1693581555791,0.007,25858.0,25857.0,0.71231844]
[1693581556088,0.007,25858.0,25857.0,0.76886682]
[1693581558192,0.007,25858.0,25857.0,1.40846682]
[1693581558983,0.007,25858.0,25857.0,1.38846682]
[1693581559292,0.007,25858.0,25857.0,1.40846682]
[1693581560694,0.007,25858.0,25857.0,1.38846682]
[1693581560890,0.007,25858.0,25857.0,1.40846682]
[1693581561697,0.007,25858.0,25857.0,2.50322452]
[1693581561901,0.007,25858.0,25857.0,2.52322452]
[1693581564086,0.007,25858.0,25857.0,2.50322452]
[1693581564499,0.007,25858.0,25857.0,2.52322452]
[1693581565595,0.007,25858.0,25857.0,2.50322452]
[1693581566203,0.007,25858.0,25857.0,3.07978039]
[1693581567389,0.007,25858.0,25857.0,2.25848039]
[1693581573707,0.1662,25862.0,25859.0,0.3]
[1693581573893,0.1662,25862.0,25861.0,0.4179]
[1693581574092,0.1662,25862.0,25861.0,1.5326577]
[1693581574497,0.1662,25862.0,25861.0,1.63289516]
[1693581576109,0.1862,25862.0,25861.0,0.4179]
[1693581576499,0.25814964,25862.0,25861.0,0.4549]
[1693581576899,0.20646057,25862.0,25861.0,0.4919]
[1693581577095,0.26114964,25862.0,25861.0,0.4919]
[1693581577300,0.20646057,25862.0,25861.0,0.4919]
[1693581577503,0.20546057,25862.0,25861.0,0.4769]
[1693581578307,0.20546057,25862.0,25861.0,0.52058908]
[1693581578506,0.20546057,25862.0,25861.0,0.4769]
[1693581578704,0.20546057,25862.0,25861.0,0.4719]
[1693581578912,0.1912,25862.0,25861.0,0.51558908]
[1693581579306,0.1912,25862.0,25861.0,0.57213746]
[1693581579508,0.38416813,25862.0,25861.0,0.57213746]
[1693581579813,0.1912,25862.0,25861.0,0.57213746]
[1693581580004,0.1712,25862.0,25861.0,0.57213746]
[1693581581406,0.36416813,25862.0,25861.0,0.57213746]
[1693581581604,0.1712,25862.0,25861.0,0.57213746]
[1693581582508,0.36416813,25862.0,25861.0,0.57213746]
[1693581582714,0.1712,25862.0,25861.0,0.57213746]
[1693581582918,0.1712,25862.0,25861.0,0.53348746]
[1693581583110,0.1712,25862.0,25861.0,0.57213746]
[1693581583317,0.38416813,25862.0,25861.0,0.4719]
[1693581583520,0.1912,25862.0,25861.0,0.4719]
[1693581583719,0.20546057,25862.0,25861.0,0.4719]
[1693581584216,0.20446057,25862.0,25861.0,0.4589]
[1693581584615,0.1902,25862.0,25861.0,0.50258908]
[1693581584816,0.1892,25862.0,25861.0,0.48958908]
[1693581585020,0.2212,25862.0,25861.0,0.47358908]
[1693581585209,0.2012,25862.0,25861.0,0.53013746]
[1693581585404,0.2002,25862.0,25861.0,0.52113746]
[1693581585605,0.2372,25862.0,25861.0,0.52413746]
[1693581586327,0.29188907,25862.0,25861.0,0.4239]
[1693581586620,0.30614964,25862.0,25861.0,0.4239]
[1693581586917,0.24446057,25862.0,25861.0,0.4219]
[1693581587422,0.20746057,25862.0,25861.0,0.4199]
[1693581587619,0.27214964,25862.0,25861.0,0.4189]
[1693581587820,0.25446057,25862.0,25861.0,0.4219]
[1693581588019,0.2202,25862.0,25861.0,0.4219]